fUSD/lending_fUSD_20240319
["ID","MTS","AMOUNT","RATE_DAILY","PERIOD"]
[319593815,1710885064403,-500.0,0.00030684,2]
[319593816,1710885064413,-500.0,0.00030684,2]
[319593817,1710885064423,-628.41,0.00030684,2]
[319593818,1710885064432,-500.0,0.00030684,2]
[319593819,1710885064443,-500.0,0.00030684,2]
[319593820,1710885064460,-500.0,0.00030684,2]
[319593821,1710885064470,-964.89,0.00030684,2]
[319593822,1710885064479,-620.13,0.00030684,2]
[319593823,1710885064490,-786.01,0.00030684,2]
[319593824,1710885064499,-564.61,0.00030684,2]
[319593825,1710885064508,-865.28,0.00030684,2]
[319593826,1710885064518,-500.0,0.00030684,2]
[319593827,1710885064528,-500.0,0.00030684,2]
[319593828,1710885064537,-500.0,0.00030684,2]
[319593829,1710885064546,-500.0,0.00030684,2]
[319593830,1710885064555,-500.0,0.00030684,2]
[319593831,1710885064565,-529.43,0.00030684,2]
[319593832,1710885064574,-618.58,0.00030684,2]
[319593833,1710885064584,-500.0,0.00030684,2]
[319593834,1710885064593,-563.52,0.00030684,2]
[319593835,1710885064603,-500.0,0.00030684,2]
[319593836,1710885064613,-2015.12,0.00030684,2]
[319593837,1710885064623,-500.0,0.00030684,2]
[319593838,1710885064633,-500.0,0.00030684,2]
[319593839,1710885064643,-631.9,0.00030684,2]
[319593840,1710885064652,-681.13,0.00030684,2]
[319593841,1710885064662,-1086.99,0.00030684,2]
[319593842,1710885064671,-500.0,0.00030684,2]
[319593843,1710885064681,-500.0,0.00030684,2]
[319593844,1710885064690,-500.0,0.00030684,2]
[319593845,1710885064699,-500.0,0.00030684,2]
[319593846,1710885064708,-500.0,0.00030684,2]
[319593847,1710885064717,-652.31,0.00030684,2]
[319593848,1710885064727,-479.61231158,0.00030684,2]
[319593849,1710885064736,-1320.6,0.00030684,2]
[319593850,1710885064745,-1250.92,0.00030684,2]
[319593851,1710885064755,-1120.04,0.00030684,2]
[319593852,1710885064764,-500.0,0.00030684,2]
[319593853,1710885064773,-500.0,0.00030684,2]
[319593854,1710885064782,-500.0,0.00030684,2]
[319593855,1710885064791,-510.25,0.00030684,2]
[319593856,1710885064812,-921.3,0.00030684,2]
[319593857,1710885064823,-1041.72,0.00030684,2]
[319593858,1710885064833,-1043.25,0.00030684,2]
[319593859,1710885064842,-500.0,0.00030684,2]
[319593860,1710885064851,-500.0,0.00030684,2]
[319593861,1710885064861,-535.44,0.00030684,2]
[319593862,1710885064870,-500.0,0.00030684,2]
[319593863,1710885064880,-500.0,0.00030684,2]
[319593864,1710885064889,-500.0,0.00030684,2]
[319593865,1710885064899,-500.0,0.00030684,2]
[319593866,1710885064909,-500.0,0.00030684,2]
[319593867,1710885064919,-957.02,0.00030684,2]
[319593868,1710885064928,-549.6,0.00030684,2]
[319593869,1710885064938,-500.0,0.00030684,2]
[319593870,1710885065067,-500.0,0.00030684,2]
[319593871,1710885065078,-500.0,0.00030684,2]
[319593872,1710885065089,-500.0,0.00030684,2]
[319593873,1710885065099,-546.14,0.00030684,2]
[319593874,1710885065109,-500.0,0.00030684,2]
[319593875,1710885065118,-500.0,0.00030684,2]
[319593876,1710885065127,-983.01,0.00030684,2]
[319593877,1710885065137,-500.0,0.00030684,2]
[319593878,1710885065146,-500.0,0.00030684,2]
[319593879,1710885065155,-500.0,0.00030684,2]
[319593880,1710885065166,-500.0,0.00030684,2]
[319593881,1710885065175,-502.25,0.00030684,2]
[319593882,1710885065186,-583.52,0.00030684,2]
[319593883,1710885065196,-500.0,0.00030684,2]
[319593884,1710885065205,-500.0,0.00030684,2]
[319593885,1710885065215,-500.0,0.00030684,2]
[319593886,1710885065225,-701.32,0.00030684,2]
[319593887,1710885065234,-845.97,0.00030684,2]
[319593888,1710885065244,-500.0,0.00030684,2]
[319593889,1710885065255,-604.6,0.00030684,2]
[319593890,1710885065264,-500.0,0.00030684,2]
[319593891,1710885065275,-626.44,0.00030684,2]
[319593892,1710885065285,-500.0,0.00030684,2]
[319593893,1710885065294,-500.0,0.00030684,2]
[319593894,1710885065304,-1296.65,0.00030684,2]
[319593895,1710885065315,-500.0,0.00030684,2]
[319593896,1710885065325,-1134.53,0.00030684,2]
[319593897,1710885065335,-500.0,0.00030684,2]
[319593898,1710885065346,-500.0,0.00030684,2]
[319593899,1710885065355,-507.2,0.00030684,2]
[319593900,1710885065365,-783.57,0.00030684,2]
[319593901,1710885065375,-1022.89,0.00030684,2]
[319593902,1710885065385,-668.88,0.00030684,2]
[319593903,1710885065395,-500.0,0.00030684,2]
[319593904,1710885065405,-500.0,0.00030684,2]
[319593905,1710885065415,-597.77,0.00030684,2]
[319593906,1710885065425,-500.0,0.00030684,2]
[319593907,1710885065435,-500.0,0.00030684,2]
[319593908,1710885065446,-500.0,0.00030684,2]
[319593909,1710885065460,-1578.12,0.00030684,2]
[319593910,1710885065470,-1317.95,0.00030684,2]
[319593911,1710885065481,-500.0,0.00030684,2]
[319593912,1710885065493,-500.0,0.00030684,2]
[319593913,1710885065503,-500.0,0.00030684,2]
[319593914,1710885065513,-500.0,0.00030684,2]
[319593915,1710885065523,-706.81,0.00030684,2]
[319593916,1710885065535,-511.52759018,0.00030684,2]
[319593917,1710885065545,-500.0,0.00030684,2]
[319593918,1710885065555,-820.72,0.00030684,2]
[319593919,1710885065565,-500.0,0.00030684,2]
[319593920,1710885065575,-511.35,0.00030684,2]
[319593921,1710885065586,-500.0,0.00030684,2]
[319593922,1710885065596,-1159.47,0.00030684,2]
[319593923,1710885065606,-752.64,0.00030684,2]
[319593924,1710885065617,-1433.6,0.00030684,2]
[319593925,1710885065628,-500.0,0.00030684,2]
[319593926,1710885065638,-500.0,0.00030684,2]
[319593927,1710885065648,-500.0,0.00030684,2]
[319593928,1710885065658,-500.0,0.00030684,2]
[319593929,1710885065669,-1189.27,0.00030684,2]
[319593930,1710885065679,-500.0,0.00030684,2]
[319593931,1710885065689,-500.0,0.00030684,2]
[319593932,1710885065699,-572.14,0.00030684,2]
[319593933,1710885065709,-1127.91,0.00030684,2]
[319593934,1710885065719,-729.46,0.00030684,2]
[319593935,1710885065729,-500.0,0.00030684,2]
[319593936,1710885065739,-500.0,0.00030684,2]
[319593937,1710885065748,-1199.62,0.00030684,2]
[319593938,1710885065758,-562.99,0.00030684,2]
[319593939,1710885065768,-786.3,0.00030684,2]
[319593940,1710885065778,-500.0,0.00030684,2]
[319593941,1710885065788,-500.0,0.00030684,2]
[319593942,1710885065798,-1265.95,0.00030684,2]
[319593943,1710885065808,-500.0,0.00030684,2]
[319593944,1710885065818,-580.29,0.00030684,2]
[319593945,1710885065828,-500.0,0.00030684,2]
[319593946,1710885065838,-500.0,0.00030684,2]
[319593947,1710885065848,-500.0,0.00030684,2]
[319593948,1710885065857,-2136.15,0.00030684,2]
[319593949,1710885065868,-718.68,0.00030684,2]
[319593950,1710885065878,-928.05,0.00030684,2]
[319593951,1710885065888,-500.0,0.00030684,2]
[319593952,1710885065897,-783.9,0.00030684,2]
[319593953,1710885065908,-1320.02,0.00030684,2]
[319593954,1710885065917,-500.0,0.00030684,2]
[319593955,1710885065927,-1043.02,0.00030684,2]
[319593956,1710885065937,-802.08,0.00030684,2]
[319593957,1710885065947,-500.0,0.00030684,2]
[319593958,1710885065957,-1028.49,0.00030684,2]
[319593959,1710885065967,-1179.51,0.00030684,2]
[319593960,1710885065977,-812.3,0.00030684,2]
[319593961,1710885065987,-1146.04,0.00030684,2]
[319593962,1710885066001,-500.0,0.00030684,2]
[319593963,1710885066011,-500.0,0.00030684,2]
[319593964,1710885066022,-1045.71,0.00030684,2]
[319593965,1710885066033,-500.0,0.00030684,2]
[319593966,1710885066043,-500.0,0.00030684,2]
[319593967,1710885066053,-530.67,0.00030684,2]
[319593968,1710885066065,-649.64,0.00030684,2]
[319593969,1710885066079,-500.0,0.00030684,2]
[319593970,1710885066089,-500.0,0.00030684,2]
[319593971,1710885066099,-500.0,0.00030684,2]
[319593972,1710885066109,-500.0,0.00030684,2]
[319593973,1710885066119,-500.0,0.00030684,2]
[319593974,1710885066130,-500.0,0.00030684,2]
[319593975,1710885066140,-500.0,0.00030684,2]
[319593976,1710885066150,-500.0,0.00030684,2]
[319593977,1710885066160,-301.3547064,0.00030684,2]
[319593978,1710885066171,-500.0,0.00030684,2]
[319593979,1710885066182,-500.0,0.00030684,2]
[319593980,1710885066192,-775.28,0.00030684,2]
[319593981,1710885066202,-897.58,0.00030684,2]
[319593982,1710885066212,-1675.73,0.00030684,2]
[319593983,1710885066222,-500.0,0.00030684,2]
[319593984,1710885066231,-500.0,0.00030684,2]
[319593985,1710885066241,-937.79,0.00030684,2]
[319593986,1710885066251,-734.15,0.00030684,2]
[319593987,1710885066261,-500.0,0.00030684,2]
[319593988,1710885066272,-420.25396917,0.00030684,2]
[319593989,1710885066282,-1431.93,0.00030684,2]
[319593990,1710885066292,-530.51,0.00030684,2]
[319593991,1710885066302,-1508.78,0.00030684,2]
[319593992,1710885066313,-500.0,0.00030684,2]
[319593993,1710885066324,-500.0,0.00030684,2]
[319593994,1710885066335,-500.0,0.00030684,2]
[319593995,1710885066345,-500.0,0.00030684,2]
[319593996,1710885066355,-500.0,0.00030684,2]
[319593997,1710885066366,-500.0,0.00030684,2]
[319593998,1710885066377,-500.0,0.00030684,2]
[319593999,1710885066387,-621.71,0.00030684,2]
[319594000,1710885066397,-3024.0,0.00030684,2]
[319594001,1710885066407,-571.47,0.00030684,2]
[319594002,1710885066417,-500.0,0.00030684,2]
[319594003,1710885066428,-538.79,0.00030684,2]
[319594004,1710885066438,-762.86,0.00030684,2]
[319594005,1710885066449,-985.89,0.00030684,2]
[319594006,1710885066460,-500.0,0.00030684,2]
[319594007,1710885066470,-1947.91,0.00030684,2]
[319594008,1710885066480,-863.2,0.00030684,2]
[319594009,1710885066491,-500.0,0.00030684,2]
[319594010,1710885066502,-500.0,0.00030684,2]
[319594011,1710885066513,-500.0,0.00030684,2]
[319594012,1710885066523,-747.16,0.00030684,2]
[319594013,1710885066534,-538.79,0.00030684,2]
[319594014,1710885066546,-772.61,0.00030684,2]
[319594015,1710885066557,-500.0,0.00030684,2]
[319594016,1710885066568,-500.0,0.00030684,2]
[319594017,1710885066578,-500.0,0.00030684,2]
[319594018,1710885066589,-500.0,0.00030684,2]
[319594019,1710885066600,-500.0,0.00030684,2]
[319594020,1710885066611,-500.0,0.00030684,2]
[319594021,1710885066622,-1767.34,0.00030684,2]
[319594022,1710885066633,-500.0,0.00030684,2]
[319594023,1710885066644,-500.0,0.00030684,2]
[319594024,1710885066654,-500.0,0.00030684,2]
[319594025,1710885066665,-1603.73,0.00030684,2]
[319594026,1710885066676,-500.0,0.00030684,2]
[319594027,1710885066687,-500.0,0.00030684,2]
[319594028,1710885066699,-500.0,0.00030684,2]
[319594029,1710885066711,-500.0,0.00030684,2]
[319594030,1710885066722,-892.48,0.00030684,2]
[319594031,1710885066733,-1478.75,0.00030684,2]
[319594032,1710885066744,-654.11,0.00030684,2]
[319594033,1710885066754,-500.0,0.00030684,2]
[319594034,1710885066766,-500.0,0.00030684,2]
[319594035,1710885066776,-1208.68,0.00030684,2]
[319594036,1710885066786,-500.0,0.00030684,2]
[319594037,1710885066797,-500.0,0.00030684,2]
[319594038,1710885066808,-500.0,0.00030684,2]
[319594039,1710885066818,-1428.4,0.00030684,2]
[319594040,1710885066829,-1477.07,0.00030684,2]
[319594041,1710885066840,-500.0,0.00030684,2]
[319594042,1710885066852,-500.0,0.00030684,2]
[319594043,1710885066864,-526.9,0.00030684,2]
[319594044,1710885066875,-500.0,0.00030684,2]
[319594045,1710885066885,-2930.57,0.00030684,2]
[319594046,1710885066899,-500.0,0.00030684,2]
[319594047,1710885066911,-413.84824884,0.00030684,2]
[319594048,1710885066925,-948.83,0.00030684,2]
[319594049,1710885066937,-500.0,0.00030684,2]
[319594050,1710885066949,-500.0,0.00030684,2]
[319594051,1710885066963,-1084.77,0.00030684,2]
[319594052,1710885066974,-500.0,0.00030684,2]
[319594053,1710885066985,-500.0,0.00030684,2]
[319594054,1710885066996,-500.0,0.00030684,2]
[319594055,1710885067021,-500.0,0.00030684,2]
[319594056,1710885067037,-500.0,0.00030684,2]
[319594057,1710885067051,-1970.31,0.00030684,2]
[319594058,1710885067063,-1046.29,0.00030684,2]
[319594059,1710885067074,-853.25,0.00030684,2]
[319594060,1710885067089,-748.56,0.00030684,2]
[319594061,1710885067102,-608.95,0.00030684,2]
[319594062,1710885067116,-500.0,0.00030684,2]
[319594063,1710885067127,-636.98,0.00030684,2]
[319594064,1710885067137,-500.0,0.00030684,2]
[319594065,1710885067148,-500.0,0.00030684,2]
[319594066,1710885067160,-1279.27,0.00030684,2]
[319594067,1710885067186,-500.0,0.00030684,2]
[319594068,1710885067200,-1827.01,0.00030684,2]
[319594069,1710885067214,-500.0,0.00030684,2]
[319594070,1710885067224,-1006.11,0.00030684,2]
[319594071,1710885067234,-500.0,0.00030684,2]
[319594072,1710885067244,-500.0,0.00030684,2]
[319594073,1710885067255,-500.0,0.00030684,2]
[319594074,1710885067266,-1949.93,0.00030684,2]
[319594075,1710885067276,-500.0,0.00030684,2]
[319594076,1710885067286,-1192.24,0.00030684,2]
[319594077,1710885067310,-500.0,0.00030684,2]
[319594078,1710885067320,-2813.53,0.00030684,2]
[319594079,1710885067332,-845.98,0.00030684,2]
[319594080,1710885067342,-1011.35,0.00030684,2]
[319594081,1710885067352,-500.0,0.00030684,2]
[319594082,1710885067363,-1701.68,0.00030684,2]
[319594083,1710885067373,-1413.56,0.00030684,2]
[319594084,1710885067384,-500.0,0.00030684,2]
[319594085,1710885067394,-671.21,0.00030684,2]
[319594086,1710885067404,-856.2,0.00030684,2]
[319594087,1710885067414,-500.0,0.00030684,2]
[319594088,1710885067425,-500.0,0.00030684,2]
[319594089,1710885067435,-1896.31,0.00030684,2]
[319594090,1710885067447,-500.0,0.00030684,2]
[319594091,1710885067457,-2782.61,0.00030684,2]
[319594092,1710885067468,-500.0,0.00030684,2]
[319594093,1710885067478,-500.0,0.00030684,2]
[319594094,1710885067490,-609.95,0.00030684,2]
[319594095,1710885067500,-500.0,0.00030684,2]
[319594096,1710885067511,-1536.94,0.00030684,2]
[319594097,1710885067521,-2552.49,0.00030684,2]
[319594098,1710885067532,-500.0,0.00030684,2]
[319594099,1710885067543,-2081.49,0.00030684,2]
[319594100,1710885067553,-500.0,0.00030684,2]
[319594101,1710885067564,-1715.16,0.00030684,2]
[319594102,1710885067574,-500.0,0.00030684,2]
[319594103,1710885067584,-1266.65,0.00030684,2]
[319594104,1710885067594,-1645.88,0.00030684,2]
[319594105,1710885067604,-500.0,0.00030684,2]
[319594106,1710885067614,-500.0,0.00030684,2]
[319594107,1710885067623,-500.0,0.00030684,2]
[319594108,1710885067633,-500.0,0.00030684,2]
[319594109,1710885067643,-500.0,0.00030684,2]
[319594110,1710885067653,-1784.06,0.00030684,2]
[319594111,1710885067663,-1425.44,0.00030684,2]
[319594112,1710885067673,-500.0,0.00030684,2]
[319594113,1710885067682,-645.99,0.00030684,2]
[319594114,1710885067691,-500.0,0.00030684,2]
[319594115,1710885067701,-500.0,0.00030684,2]
[319594116,1710885067711,-856.99,0.00030684,2]
[319594117,1710885067721,-1509.6,0.00030684,2]
[319594118,1710885067732,-500.0,0.00030684,2]
[319594119,1710885067741,-1899.37,0.00030684,2]
[319594120,1710885067751,-825.81,0.00030684,2]
[319594121,1710885067761,-500.0,0.00030684,2]
[319594122,1710885067771,-500.0,0.00030684,2]
[319594123,1710885067781,-500.0,0.00030684,2]
[319594124,1710885067791,-1668.46,0.00030684,2]
[319594125,1710885067801,-151.0,0.00030684,7]
[319594126,1710885067813,-500.0,0.00030684,2]
[319594127,1710885067823,-500.0,0.00030684,2]
[319594128,1710885067833,-1817.59,0.00030684,2]
[319594129,1710885067843,-612.56,0.00030684,2]
[319594130,1710885067853,-151.0,0.00030684,7]
[319594131,1710885067863,-500.0,0.00030684,2]
[319594132,1710885067873,-641.85,0.00030684,2]
[319594133,1710885067883,-500.0,0.00030684,2]
[319594134,1710885067892,-500.0,0.00030684,2]
[319594135,1710885067902,-3349.51,0.00030684,2]
[319594136,1710885067912,-1668.73,0.00030684,2]
[319594137,1710885067921,-500.0,0.00030684,2]
[319594138,1710885067931,-2185.83,0.00030684,2]
[319594139,1710885067941,-1047.88,0.00030684,2]
[319594140,1710885067950,-500.0,0.00030684,2]
[319594141,1710885067960,-709.8,0.00030684,2]
[319594142,1710885067969,-500.0,0.00030684,2]
[319594143,1710885067979,-3189.82,0.00030684,2]
[319594144,1710885067989,-500.0,0.00030684,2]
[319594145,1710885067999,-500.0,0.00030684,2]
[319594146,1710885068008,-2131.99,0.00030684,2]
[319594147,1710885068018,-500.0,0.00030684,2]
[319594148,1710885068027,-500.0,0.00030684,2]
[319594149,1710885068037,-2548.99,0.00030684,2]
[319594150,1710885068046,-500.0,0.00030684,2]
[319594151,1710885068056,-500.0,0.00030684,2]
[319594152,1710885068067,-1717.39,0.00030684,2]
[319594153,1710885068077,-500.0,0.00030684,2]
[319594154,1710885068087,-500.0,0.00030684,2]
[319594155,1710885068097,-500.0,0.00030684,2]
[319594156,1710885068107,-3499.12,0.00030684,2]
[319594157,1710885068118,-3366.11,0.00030684,2]
[319594158,1710885068129,-920.95,0.00030684,2]
[319594159,1710885068139,-1172.13,0.00030684,2]
[319594160,1710885068149,-762.14,0.00030684,2]
[319594161,1710885068159,-500.0,0.00030684,2]
[319594162,1710885068169,-500.0,0.00030684,2]
[319594163,1710885068179,-500.0,0.00030684,2]
[319594164,1710885068190,-500.0,0.00030684,2]
[319594165,1710885068200,-500.0,0.00030684,2]
[319594166,1710885068211,-651.81,0.00030684,2]
[319594167,1710885068221,-500.0,0.00030684,2]
[319594168,1710885068234,-2755.73,0.00030684,2]
[319594169,1710885068245,-500.0,0.00030684,2]
[319594170,1710885068256,-2171.26,0.00030684,2]
[319594171,1710885068266,-554.31,0.00030684,2]
[319594172,1710885068277,-913.38,0.00030684,2]
[319594173,1710885068288,-517.56,0.00030684,2]
[319594174,1710885068299,-500.0,0.00030684,2]
[319594175,1710885068310,-622.91,0.00030684,2]
[319594176,1710885068321,-1265.69,0.00030684,2]
[319594177,1710885068332,-576.05,0.00030684,2]
[319594178,1710885068342,-2191.46,0.00030684,2]
[319594179,1710885068352,-1378.12,0.00030684,2]
[319594180,1710885068363,-500.0,0.00030684,2]
[319594181,1710885068374,-500.0,0.00030684,2]
[319594182,1710885068384,-832.3,0.00030684,2]
[319594183,1710885068394,-3259.21,0.00030684,2]
[319594184,1710885068403,-516.5,0.00030684,2]
[319594185,1710885068413,-500.0,0.00030684,2]
[319594186,1710885068423,-500.0,0.00030684,2]
[319594187,1710885068433,-750.69,0.00030684,2]
[319594188,1710885068444,-500.0,0.00030684,2]
[319594189,1710885068453,-6099.55,0.00030684,2]
[319594190,1710885068463,-500.0,0.00030684,2]
[319594191,1710885068473,-705.53,0.00030684,2]
[319594192,1710885068485,-583.59,0.00030684,2]
[319594193,1710885068495,-510.82,0.00030684,2]
[319594194,1710885068504,-554.14,0.00030684,2]
[319594195,1710885068513,-500.0,0.00030684,2]
[319594196,1710885068523,-1054.91,0.00030684,2]
[319594197,1710885068532,-1769.12,0.00030684,2]
[319594198,1710885068542,-500.0,0.00030684,2]
[319594199,1710885068552,-500.0,0.00030684,2]
[319594200,1710885068563,-500.0,0.00030684,2]
[319594201,1710885068572,-758.11,0.00030684,2]
[319594202,1710885068582,-500.0,0.00030684,2]
[319594203,1710885068592,-500.0,0.00030684,2]
[319594204,1710885068602,-614.47,0.00030684,2]
[319594205,1710885068611,-500.0,0.00030684,2]
[319594206,1710885068621,-565.83,0.00030684,2]
[319594207,1710885068631,-3031.48,0.00030684,2]
[319594208,1710885068642,-500.0,0.00030684,2]
[319594209,1710885068651,-1793.05,0.00030684,2]
[319594210,1710885068661,-1813.36,0.00030684,2]
[319594211,1710885068672,-1781.25,0.00030684,2]
[319594212,1710885068682,-500.0,0.00030684,2]
[319594213,1710885068696,-500.0,0.00030684,2]
[319594214,1710885068706,-5948.25,0.00030684,2]
[319594215,1710885068723,-500.0,0.00030684,2]
[319594216,1710885068734,-500.0,0.00030684,2]
[319594217,1710885068744,-721.19,0.00030684,2]
[319594218,1710885068754,-500.0,0.00030684,2]
[319594219,1710885068763,-500.0,0.00030684,2]
[319594220,1710885068785,-2298.94,0.00030684,2]
[319594221,1710885068797,-500.0,0.00030684,2]
[319594222,1710885068822,-1467.68,0.00030684,2]
[319594223,1710885068832,-2048.3,0.00030684,2]
[319594224,1710885068842,-500.0,0.00030684,2]
[319594225,1710885068863,-500.0,0.00030684,2]
[319594226,1710885068874,-740.6,0.00030684,2]
[319594227,1710885068883,-500.0,0.00030684,2]
[319594228,1710885068893,-3725.64,0.00030684,2]
[319594229,1710885068903,-500.0,0.00030684,2]
[319594230,1710885068929,-7446.28,0.00030684,2]
[319594231,1710885068958,-1176.01,0.00030684,2]
[319594232,1710885068977,-500.0,0.00030684,2]
[319594233,1710885068991,-500.0,0.00030684,2]
[319594234,1710885069001,-1639.61,0.00030684,2]
[319594235,1710885069011,-500.0,0.00030684,2]
[319594236,1710885069043,-500.0,0.00030684,2]
[319594237,1710885069054,-814.35,0.00030684,2]
[319594238,1710885069065,-500.0,0.00030684,2]
[319594239,1710885069081,-1904.86,0.00030684,2]
[319594240,1710885069092,-531.89,0.00030684,2]
[319594241,1710885069108,-541.15,0.00030684,2]
[319594242,1710885069120,-500.0,0.00030684,2]
[319594243,1710885069129,-505.23,0.00030684,2]
[319594244,1710885069147,-500.0,0.00030684,2]
[319594245,1710885069157,-1726.69,0.00030684,2]
[319594246,1710885069191,-500.0,0.00030684,2]
[319594247,1710885069206,-706.92,0.00030684,2]
[319594248,1710885069221,-1397.11,0.00030684,2]
[319594249,1710885069236,-500.0,0.00030684,2]
[319594250,1710885069249,-644.74,0.00030684,2]
[319594251,1710885069262,-723.57,0.00030684,2]
[319594252,1710885069277,-2864.27,0.00030684,2]
[319594253,1710885069289,-500.0,0.00030684,2]
[319594254,1710885069303,-2584.9,0.00030684,2]
[319594255,1710885069320,-6961.76,0.00030684,2]
[319594256,1710885069331,-500.0,0.00030684,2]
[319594257,1710885069348,-1043.19,0.00030684,2]
[319594258,1710885069358,-915.89,0.00030684,2]
[319594259,1710885069393,-500.0,0.00030684,2]
[319594260,1710885069407,-1764.05,0.00030684,2]
[319594261,1710885069419,-1312.85,0.00030684,2]
[319594262,1710885069429,-1045.63,0.00030684,2]
[319594263,1710885069439,-961.87,0.00030684,2]
[319594264,1710885069452,-3736.86,0.00030684,2]
[319594265,1710885069470,-500.0,0.00030684,2]
[319594266,1710885069480,-838.02,0.00030684,2]
[319594267,1710885069500,-500.0,0.00030684,2]
[319594268,1710885069525,-1302.7,0.00030684,2]
[319594269,1710885069545,-2820.33,0.00030684,2]
[319594270,1710885069563,-500.0,0.00030684,2]
[319594271,1710885069580,-500.0,0.00030684,2]
[319594272,1710885069594,-500.0,0.00030684,2]
[319594273,1710885069604,-2171.52,0.00030684,2]
[319594274,1710885069615,-4792.93,0.00030684,2]
[319594275,1710885069625,-1199.36,0.00030684,2]
[319594276,1710885069635,-500.0,0.00030684,2]
[319594277,1710885069646,-500.0,0.00030684,2]
[319594278,1710885069656,-2181.61,0.00030684,2]
[319594279,1710885069666,-500.0,0.00030684,2]
[319594280,1710885069677,-500.0,0.00030684,2]
[319594281,1710885069687,-500.0,0.00030684,2]
[319594282,1710885069698,-500.0,0.00030684,2]
[319594283,1710885069708,-1621.75,0.00030684,2]
[319594284,1710885069718,-501.95,0.00030684,2]
[319594285,1710885069729,-500.0,0.00030684,2]
[319594286,1710885069739,-589.7,0.00030684,2]
[319594287,1710885069749,-855.86,0.00030684,2]
[319594288,1710885069760,-256.11583355,0.00030684,2]
[319594289,1710885069770,-3227.64,0.00030684,2]
[319594290,1710885069780,-500.0,0.00030684,2]
[319594291,1710885069790,-863.41,0.00030684,2]
[319594292,1710885069800,-2111.52,0.00030684,2]
[319594293,1710885069812,-2950.43,0.00030684,2]
[319594294,1710885069822,-500.0,0.00030684,2]
[319594295,1710885069832,-500.0,0.00030684,2]
[319594296,1710885070007,-500.0,0.00030684,2]
[319594297,1710885070017,-5122.72,0.00030684,2]
[319594298,1710885070027,-500.0,0.00030684,2]
[319594299,1710885070036,-824.14,0.00030684,2]
[319594300,1710885070045,-10026.4,0.00030684,2]
[319594301,1710885070055,-500.0,0.00030684,2]
[319594302,1710885070065,-500.0,0.00030684,2]
[319594303,1710885070074,-500.0,0.00030684,2]
[319594304,1710885070084,-2275.12,0.00030684,2]
[319594305,1710885070093,-500.0,0.00030684,2]
[319594306,1710885070103,-565.71,0.00030684,2]
[319594307,1710885070112,-1033.05,0.00030684,2]
[319594308,1710885070122,-500.0,0.00030684,2]
[319594309,1710885070131,-126732.2,0.00030684,2]
[319594310,1710885070140,-504.07,0.00030684,2]
[319594311,1710885070150,-500.0,0.00030684,2]
[319594312,1710885070160,-500.0,0.00030684,2]
[319594313,1710885070170,-500.0,0.00030684,2]
[319594314,1710885070181,-4852.56,0.00030684,2]